bitfinex-derivatives/quotes_SOLF0:USTF0_20251024
["timestamp","ask_amount","ask_price","bid_price","bid_amount"]
[1761266573573,2.77,192.46,192.42,2.375005]
[1761266573776,4.41933744,192.45,192.42,2.375005]
[1761266573972,2.77,192.45,192.42,2.375005]
[1761266574175,2.77,192.43,192.41,43.42]
[1761266574369,2.77,192.43,192.4,43.42]
[1761266575380,4.42091223,192.42,192.4,43.42]
[1761266575567,2.77,192.43,192.4,43.42]
[1761266575770,2.77,192.41,192.4,43.42]
[1761266575978,2.77,192.45,192.4,43.42]
[1761266576279,2.77,192.43,192.4,43.42]
[1761266576478,7.19104357,192.42,192.4,43.42]
[1761266576779,2.77,192.42,192.4,43.42]
[1761266576975,4.85364379,192.46,192.31,1.97]
[1761266576976,2.77,192.4,192.31,1.97]
[1761266577167,7.19120017,192.39,192.31,45.39]
[1761266577370,4.42120017,192.38,192.31,45.39]
[1761266577578,2.77,192.39,192.31,45.39]
[1761266577778,7.19072982,192.38,192.32,4.6784]
[1761266577979,2.77,192.36,192.31,45.39]
[1761266578381,2.77,192.4,192.32,6.6483]
[1761266578681,4.41987091,192.39,192.32,6.6483]
[1761266578870,4.41987091,192.38,192.32,6.6483]
[1761266579070,2.77,192.39,192.32,6.6483]
[1761266579272,4.41969978,192.38,192.32,1.97]
[1761266579473,4.85364379,192.45,192.36,2.375005]
[1761266579677,4.41867016,192.44,192.38,1.97]
[1761266579979,4.41867016,192.43,192.38,1.97]
[1761266580286,4.41867016,192.42,192.4,1.97]
[1761266580581,7.47364379,192.47,192.4,1.97]
[1761266580776,9.2847605,192.46,192.4,1.97]
[1761266580975,6.4268317,192.49,192.39,4.6767]
[1761266580976,4.41858878,192.45,192.42,1.97]
[1761266581180,7.48528932,192.48,192.42,45.47]
[1761266581482,4.41811516,192.47,192.43,1.97]
[1761266581675,4.41811516,192.46,192.43,1.97]
[1761266581981,4.41811516,192.45,192.43,1.97]
[1761266582181,2.62,192.48,192.43,1.97]
[1761266582372,4.39049165,192.47,192.43,1.97]
[1761266582578,4.86512501,192.51,192.43,1.97]
[1761266582881,4.3901935,192.5,192.44,43.5]
[1761266583180,2.62,192.48,192.44,43.5]
[1761266583781,4.86512501,192.51,192.44,45.47]
[1761266583974,4.36207871,192.5,192.44,45.47]
[1761266584169,4.36207871,192.49,192.44,45.47]
[1761266584381,2.62,192.47,192.44,43.5]
[1761266584675,2.62,192.51,192.44,43.5]
[1761266584880,4.36207162,192.5,192.44,43.5]
[1761266585076,6.98207162,192.49,192.44,45.47]
[1761266585281,4.36207162,192.48,192.44,45.47]
[1761266585478,2.62,192.49,192.44,45.47]
[1761266585685,2.62,192.47,192.44,43.5]
[1761266585876,2.62,192.45,192.44,43.5]
[1761266586184,6.98205767,192.45,192.44,43.5]
[1761266587377,6.98205767,192.45,192.39,43.5]
[1761266587578,2.62,192.43,192.39,43.5]
[1761266592283,2.62,192.43,192.39,45.47]
[1761266592478,7.48645121,192.47,192.39,43.5]
[1761266592682,2.62,192.47,192.4,1.97]
[1761266592883,2.62,192.47,192.41,50.126]
[1761266593073,2.62,192.47,192.41,50.146]
[1761266593478,4.36205255,192.46,192.42,1.97]
[1761266593678,2.62,192.47,192.42,1.97]
[1761266593874,4.36208072,192.46,192.42,1.97]
[1761266594079,2.62,192.47,192.42,1.97]
[1761266594278,4.36208103,192.46,192.42,1.97]
[1761266594484,2.62,192.47,192.42,1.97]
[1761266594684,4.36232592,192.46,192.42,1.97]
[1761266594984,7.48494506,192.5,192.42,1.97]
[1761266595180,4.36232505,192.49,192.42,6.6457]
[1761266595389,4.36232505,192.48,192.43,1.97]
[1761266595685,7.48433061,192.52,192.43,1.97]
[1761266595883,4.36213429,192.51,192.43,1.97]
[1761266596085,4.36213429,192.5,192.44,43.5]
[1761266596280,4.36213429,192.49,192.45,1.97]
[1761266596486,2.62,192.52,192.47,1.97]
[1761266596685,4.36646974,192.51,192.47,1.97]
[1761266596887,4.36646974,192.5,192.47,1.97]
[1761266597086,2.62,192.52,192.47,1.97]
[1761266597286,4.36629076,192.51,192.47,1.97]
[1761266597581,4.85591474,192.54,192.47,1.97]
[1761266597789,4.36551112,192.53,192.49,1.97]
[1761266598096,4.36551112,192.52,192.49,1.97]
[1761266598281,4.36551112,192.51,192.49,1.97]
[1761266598477,2.62,192.54,192.49,43.48]
[1761266598684,2.62,192.52,192.49,43.48]
[1761266598992,6.98536914,192.51,192.49,43.48]
[1761266599191,4.36536914,192.5,192.46,6.6448]
[1761266599485,2.62,192.51,192.47,43.48]
[1761266599878,2.62,192.51,192.47,45.45]
[1761266602294,7.47432806,192.54,192.47,43.48]
[1761266602495,4.36351234,192.53,192.46,6.6448]
[1761266602794,2.62,192.51,192.48,43.46]
[1761266603186,2.62,192.49,192.48,43.46]
[1761266603385,6.9835541,192.49,192.48,43.46]
[1761266603585,2.62,192.52,192.48,43.46]
[1761266603790,2.62,192.5,192.48,43.46]
[1761266603994,6.98391785,192.49,192.48,43.46]
[1761266604992,2.62,192.53,192.48,43.46]
[1761266605195,4.36375966,192.52,192.48,47.80389071]
[1761266605501,4.36375966,192.51,192.48,47.80389071]
[1761266605696,4.85290617,192.54,192.48,47.80389071]
[1761266605896,6.98334398,192.53,192.48,47.80389071]
[1761266606193,4.36334398,192.52,192.48,47.80389071]
[1761266606396,4.36334398,192.51,192.48,47.80389071]
[1761266606694,2.62,192.53,192.48,47.80389071]
[1761266606895,4.36313896,192.52,192.48,47.80389071]
[1761266607100,4.36313896,192.51,192.48,47.80389071]
[1761266607395,2.62,192.53,192.48,47.80389071]
[1761266607593,4.36298477,192.52,192.48,47.80389071]
[1761266607895,4.36298477,192.51,192.48,47.80389071]
[1761266608196,4.84479028,192.58,192.51,1.96]
[1761266608491,4.36199037,192.57,192.55,2.37389071]
[1761266608696,4.8495889,192.6,192.55,2.37389071]
[1761266608899,2.77,192.58,192.55,2.37389071]
[1761266609093,7.08095809,192.57,192.55,2.37389071]
[1761266609286,4.36095809,192.56,192.55,2.37389071]
[1761266609793,2.72,192.55,192.49,62.0]
[1761266609993,2.72,192.59,192.51,1.97]
[1761266610299,7.19263116,192.58,192.54,1.97]
[1761266610497,4.47263116,192.57,192.54,1.97]
[1761266610800,4.47263116,192.56,192.53,2.37389071]
[1761266610994,2.72,192.58,192.53,2.37389071]
[1761266611202,4.47137162,192.57,192.53,2.37389071]
[1761266611500,4.47137162,192.56,192.53,2.37389071]
[1761266611701,2.72,192.56,192.51,6.6435]
[1761266612200,2.72,192.54,192.5,43.48]
[1761266612401,2.72,192.54,192.5,45.45]
[1761266613190,2.72,192.58,192.5,45.45]
[1761266613390,7.18949859,192.57,192.5,45.45]
[1761266613601,4.46949859,192.56,192.5,45.45]
[1761266613899,4.84479028,192.59,192.5,45.45]
[1761266613900,7.18949859,192.55,192.51,1.97]
[1761266614202,2.72,192.55,192.51,1.97]
[1761266615404,2.72,192.59,192.52,1.97]
[1761266615593,4.46742698,192.58,192.52,1.97]
[1761266615798,7.18742698,192.57,192.52,1.97]
[1761266615996,7.18742698,192.56,192.52,1.97]
[1761266616198,2.72,192.56,192.52,1.97]
[1761266616595,2.72,192.56,192.51,7.04749071]
[1761266616798,2.72,192.56,192.52,1.51845448]
[1761266618013,2.72,192.6,192.54,1.51845448]
[1761266618214,2.72,192.58,192.54,1.51845448]
[1761266618423,2.72,192.56,192.52,1.51845448]
[1761266620222,2.72,192.56,192.54,1.51845448]
[1761266620610,2.72,192.6,192.54,1.51845448]
[1761266620817,2.72,192.58,192.54,1.51845448]
[1761266621115,2.72,192.56,192.54,1.51845448]
[1761266623814,4.46842662,192.55,192.54,1.51845448]
[1761266624211,4.46842662,192.55,192.5,45.45]
[1761266624212,4.46842662,192.55,192.5,43.48]
[1761266624416,7.19063757,192.54,192.51,1.51845448]
[1761266624615,2.72,192.52,192.48,43.42]
[1761266624815,2.72,192.52,192.49,1.51845448]
[1761266626220,4.49628215,192.51,192.49,1.51845448]
[1761266626424,2.72,192.52,192.49,1.51845448]
[1761266626622,4.49675853,192.51,192.48,43.42]
[1761266626825,2.72,192.49,192.48,43.42]
[1761266627129,2.72,192.48,192.42,1.51845448]
[1761266627322,2.72,192.46,192.42,1.51845448]
[1761266627520,7.21709355,192.45,192.42,1.51845448]
[1761266627724,2.72,192.45,192.42,1.51845448]
[1761266628324,2.72,192.43,192.4,1.51845448]
[1761266628524,2.72,192.46,192.42,1.51845448]
[1761266628725,7.21755504,192.45,192.44,1.51845448]
[1761266629625,7.21755504,192.45,192.38,1.97]
[1761266629826,4.49755504,192.44,192.38,1.97]
[1761266630026,4.49755504,192.43,192.42,1.51845448]
[1761266630627,7.21755504,192.43,192.42,1.51845448]
[1761266631128,2.72,192.48,192.42,3.48845448]
[1761266631334,7.21563063,192.47,192.46,1.51845448]
[1761266634837,7.21563063,192.47,192.44,1.51845448]
[1761266635135,4.49563063,192.46,192.44,1.51845448]
[1761266635336,4.49563063,192.45,192.44,1.51845448]
[1761266636131,4.49563063,192.45,192.44,3.48845448]
[1761266636337,4.49563063,192.45,192.44,1.51845448]
[1761266636338,7.21763248,192.45,192.44,1.51845448]
[1761266636528,2.72,192.45,192.44,1.51845448]
[1761266637041,7.2175465,192.45,192.44,1.51845448]
[1761266637631,7.2175465,192.45,192.37,43.44]
[1761266637632,2.72,192.44,192.38,1.51845448]
[1761266637830,2.72,192.42,192.38,1.51845448]
[1761266638039,2.72,192.42,192.38,3.48845448]
[1761266638535,2.72,192.42,192.4,1.51845448]
[1761266638729,2.72,192.47,192.4,1.51845448]
[1761266638931,2.72,192.45,192.38,3.48845448]
[1761266639131,4.49688071,192.44,192.38,3.48845448]
[1761266639331,4.49688071,192.43,192.4,1.51845448]
[1761266639532,2.72,192.45,192.4,1.51845448]
[1761266639728,2.72,192.43,192.4,1.51845448]
[1761266639929,2.72,192.47,192.4,3.48845448]
[1761266640133,4.49621779,192.46,192.4,3.48845448]
[1761266640331,4.49621779,192.45,192.4,3.48845448]
[1761266640527,7.21621779,192.44,192.4,3.48845448]
[1761266640730,4.49621779,192.43,192.4,1.97]
[1761266640932,2.72,192.44,192.4,1.97]
[1761266641132,4.49615573,192.43,192.4,1.97]
[1761266641439,2.72,192.44,192.4,1.97]
[1761266644046,2.72,192.48,192.4,1.97]
[1761266644243,7.21376757,192.47,192.4,1.97]
[1761266644543,7.21376757,192.46,192.4,1.97]
[1761266644736,4.49376757,192.45,192.4,1.97]
[1761266644935,2.72,192.48,192.4,1.97]
[1761266645132,7.21327041,192.47,192.4,1.97]
[1761266645442,4.49327041,192.46,192.4,1.97]
[1761266645642,4.49327041,192.45,192.4,1.97]
[1761266645842,2.72,192.47,192.4,1.97]
[1761266646042,4.49283825,192.46,192.4,1.97]
[1761266646244,4.49283825,192.45,192.4,1.97]
[1761266646442,2.72,192.47,192.4,1.97]
[1761266646631,4.49231527,192.46,192.39,1.51845448]
[1761266646835,2.72,192.5,192.43,1.51845448]
[1761266647139,7.21197046,192.49,192.43,1.51845448]
[1761266647444,7.21197046,192.48,192.43,3.48845448]
[1761266647644,7.21197046,192.47,192.43,3.48845448]
[1761266647939,2.72,192.47,192.43,8.16395448]
[1761266648133,2.72,192.47,192.45,1.51845448]
[1761266650135,2.72,192.47,192.4,1.97]
[1761266650344,2.72,192.47,192.44,1.51845448]
[1761266650541,4.49179422,192.46,192.44,1.51845448]
[1761266650744,2.72,192.46,192.44,1.51845448]
[1761266651344,2.72,192.44,192.4,4.6762]
[1761266651548,2.72,192.44,192.39,3.48845448]
[1761266652543,2.72,192.44,192.4,1.97]
[1761266653843,1.51845448,192.48,192.4,1.97]
[1761266654049,7.21129607,192.47,192.41,1.51845448]
[1761266654347,6.36324476,192.5,192.42,1.97]
[1761266654348,7.21129607,192.46,192.42,1.97]
[1761266654546,2.72,192.46,192.42,1.97]
[1761266656448,4.5403185,192.45,192.42,1.97]
[1761266656643,2.72,192.46,192.42,1.97]
[1761266656854,4.84479028,192.51,192.45,3.48845448]
[1761266657043,7.26019006,192.5,192.46,1.97]
[1761266657244,4.54019006,192.49,192.46,1.97]
[1761266657545,2.72,192.5,192.46,1.97]
[1761266657745,4.54010534,192.49,192.46,1.97]
[1761266657945,2.72,192.5,192.46,1.97]
[1761266658145,4.54007197,192.49,192.46,1.97]
[1761266658346,2.72,192.5,192.42,43.42]
[1761266658347,2.72,192.53,192.48,1.97]
[1761266658551,4.54049453,192.52,192.48,1.97]
[1761266658857,7.26049453,192.51,192.47,8.16305448]
[1761266659152,4.54049453,192.5,192.47,8.16305448]
[1761266659358,2.72,192.51,192.47,8.16305448]
[1761266659652,4.54116995,192.5,192.47,8.16305448]
[1761266659851,2.72,192.5,192.47,4.6746]
[1761266660047,2.72,192.5,192.44,1.97]
[1761266660048,2.72,192.5,192.44,8.16385448]
[1761266660355,2.72,192.48,192.44,4.6754]
[1761266661250,2.72,192.46,192.42,1.51845448]
[1761266661851,2.72,192.46,192.4,1.51845448]
[1761266662053,4.54390345,192.45,192.4,1.51845448]
[1761266662355,2.72,192.44,192.4,1.51845448]
[1761266663158,2.72,192.44,192.36,43.44]
[1761266663352,4.54661167,192.43,192.36,43.44]
[1761266663655,2.72,192.41,192.33,1.51845448]
[1761266663853,2.72,192.39,192.33,1.51845448]
[1761266664252,7.26770172,192.38,192.31,6.19705448]
[1761266664451,4.54770172,192.37,192.31,6.19705448]
[1761266664659,2.72,192.38,192.31,6.19705448]
[1761266664850,4.62696948,192.37,192.31,6.19705448]
[1761266665047,7.34696948,192.36,192.31,8.16705448]
[1761266665251,2.72,192.36,192.31,8.16705448]
[1761266665551,2.72,192.36,192.32,1.97]
[1761266665951,2.72,192.4,192.33,1.51845448]
[1761266666162,7.34720284,192.39,192.33,1.51845448]
[1761266666459,6.36324476,192.41,192.33,1.51845448]
[1761266666460,2.72,192.37,192.33,1.51845448]
[1761266666760,7.45720284,192.36,192.33,1.51845448]
[1761266666953,2.83,192.36,192.33,1.51845448]
[1761266667254,2.83,192.36,192.31,8.16705448]
[1761266667450,4.62852835,192.35,192.28,6.6492]
[1761266667755,4.62852835,192.34,192.3,1.97]
[1761266667954,2.83,192.36,192.3,1.97]
[1761266668154,2.83,192.34,192.3,1.97]
[1761266669754,2.72,192.38,192.31,3.48845448]
[1761266669960,4.63013351,192.37,192.31,3.48845448]
[1761266670254,7.35013351,192.36,192.32,1.97]
[1761266670451,4.63013351,192.35,192.32,1.97]
[1761266670646,2.72,192.36,192.32,1.97]
[1761266670854,4.63012581,192.35,192.32,1.97]
[1761266671159,7.56479028,192.4,192.33,1.51845448]
[1761266671354,4.63045831,192.39,192.33,1.51845448]
[1761266671555,7.35045831,192.38,192.33,3.48845448]
[1761266671757,4.63045831,192.37,192.34,1.97]
[1761266671958,4.63045831,192.36,192.33,3.48845448]
[1761266672158,2.72,192.38,192.33,3.48845448]
[1761266672357,4.62970685,192.37,192.33,3.48845448]
[1761266672556,4.62970685,192.36,192.33,3.48845448]
[1761266672753,2.72,192.38,192.33,1.51845448]
[1761266672958,7.3497494,192.37,192.33,1.51845448]
[1761266673158,4.6297494,192.36,192.33,1.51845448]
[1761266673359,2.72,192.37,192.33,1.51845448]
[1761266673663,4.62893171,192.36,192.33,1.51845448]
[1761266673965,2.72,192.37,192.33,1.51845448]
[1761266674864,2.72,192.37,192.33,3.48845448]
[1761266676663,2.72,192.37,192.33,1.97]
[1761266678464,7.34670088,192.36,192.33,1.97]
[1761266678666,2.72,192.36,192.33,1.97]
[1761266678862,2.72,192.36,192.31,4.6784]
[1761266679068,2.72,192.36,192.31,6.6484]
[1761266681361,2.72,192.39,192.32,1.97]
[1761266681567,7.34569869,192.38,192.32,1.97]
[1761266681759,4.62569869,192.37,192.32,1.97]
[1761266681959,2.72,192.38,192.32,1.97]
[1761266682156,2.72,192.36,192.32,1.97]
[1761266682757,4.84479028,192.42,192.34,1.97]
[1761266682963,7.34533892,192.41,192.34,1.97]
[1761266683159,4.62533892,192.4,192.34,1.97]
[1761266683360,7.34533892,192.39,192.34,1.97]
[1761266683566,4.62533892,192.38,192.34,1.97]
[1761266683867,2.72,192.39,192.34,1.97]
[1761266684056,4.62505172,192.38,192.34,1.97]
[1761266684260,2.72,192.39,192.34,1.97]
[1761266684568,2.72,192.37,192.33,6.6481]
[1761266687975,2.72,192.37,192.33,4.6781]
[1761266688164,2.72,192.37,192.33,6.6481]
[1761266688363,2.72,192.37,192.33,4.6781]
[1761266688970,2.72,192.37,192.32,2.37711227]
[1761266689174,2.72,192.37,192.32,4.34711227]
[1761266689380,4.62919401,192.36,192.32,4.34711227]
[1761266689574,2.72,192.35,192.32,4.34711227]
[1761266690175,2.72,192.35,192.28,43.44]
[1761266690377,2.72,192.35,192.3,4.34711227]
[1761266692272,2.72,192.35,192.3,2.37711227]
[1761266692478,2.72,192.33,192.3,2.37711227]
[1761266695482,2.72,192.33,192.3,4.34711227]
[1761266695681,2.72,192.36,192.31,1.97]
[1761266695884,7.34916161,192.35,192.31,1.97]
[1761266696181,4.62916161,192.34,192.31,1.97]
[1761266696376,2.72,192.34,192.31,1.97]
[1761266697384,5.10635409,192.38,192.31,1.97]
[1761266697584,7.34929925,192.37,192.31,1.97]
[1761266697883,7.34929925,192.36,192.31,1.97]
[1761266698080,4.62929925,192.35,192.31,1.97]
[1761266698282,2.72,192.36,192.31,1.97]
[1761266698581,4.62935703,192.35,192.3,1.97]
[1761266698880,4.62935703,192.35,192.31,1.97]
[1761266698881,4.62935703,192.34,192.31,1.97]
[1761266699185,2.72,192.35,192.31,1.97]
[1761266699385,4.62979252,192.34,192.31,1.97]
[1761266699586,2.72,192.35,192.31,1.97]
[1761266699786,4.62979252,192.34,192.31,1.97]
[1761266699979,2.72,192.35,192.31,1.97]
[1761266700179,4.62979223,192.34,192.31,1.97]
[1761266700483,2.69,192.41,192.33,1.97]
[1761266700788,2.69,192.39,192.34,43.42]
[1761266700988,4.62920325,192.38,192.35,1.97]
[1761266701185,2.69,192.39,192.35,1.97]
[1761266701384,4.602134,192.38,192.35,1.97]
[1761266701581,2.69,192.39,192.35,4.34711227]
[1761266701776,4.60221313,192.38,192.35,4.34711227]
[1761266701983,2.69,192.39,192.34,43.42]
[1761266702185,2.69,192.39,192.29,43.42]
[1761266702186,2.69,192.37,192.29,43.42]
[1761266702379,4.84479028,192.39,192.29,43.42]
[1761266702380,2.69,192.35,192.29,43.42]
[1761266702578,4.60253926,192.34,192.3,1.97]
[1761266702783,2.69,192.37,192.3,1.97]
[1761266703081,4.60494523,192.36,192.3,1.97]
[1761266703287,2.69,192.37,192.3,1.97]
[1761266703481,4.60705295,192.36,192.3,1.97]
[1761266703684,7.80145366,192.4,192.3,1.97]
[1761266703881,4.60705206,192.39,192.33,1.97]
[1761266704086,7.29705206,192.38,192.33,1.97]
[1761266704281,4.60705206,192.37,192.33,1.97]
[1761266704495,4.60705206,192.36,192.33,1.97]
[1761266704793,2.69,192.38,192.32,4.6783]
[1761266704990,2.69,192.34,192.29,1.97]
[1761266705291,4.84479028,192.38,192.29,45.39]
[1761266705292,7.30046517,192.33,192.29,45.39]
[1761266705586,4.61046517,192.32,192.29,45.39]
[1761266705792,4.61046517,192.31,192.29,45.39]
[1761266705987,2.69,192.33,192.29,45.39]
[1761266706189,4.61385676,192.32,192.29,45.39]
[1761266706396,4.61385676,192.31,192.29,45.39]
[1761266706593,4.61385676,192.3,192.29,45.39]
[1761266708500,4.84479028,192.38,192.33,1.97]
[1761266708704,5.12595313,192.37,192.33,1.97]
[1761266708997,7.53479028,192.38,192.33,1.97]
[1761266709199,5.1009795,192.37,192.33,1.97]
[1761266709409,2.69,192.38,192.34,43.42]
[1761266709608,5.10100583,192.37,192.34,45.39]
[1761266709903,7.53479028,192.39,192.35,1.97]
[1761266710199,5.10100636,192.38,192.35,1.97]
[1761266710393,5.10100636,192.37,192.35,1.97]
[1761266710595,2.69,192.39,192.35,1.97]
[1761266711400,4.84479028,192.43,192.36,1.97]
[1761266711597,5.09973971,192.42,192.36,1.97]
[1761266711799,7.53479028,192.44,192.36,1.97]
[1761266711997,5.09900367,192.43,192.36,1.97]
[1761266712198,5.09900367,192.42,192.36,1.97]
[1761266712395,2.69,192.44,192.36,1.97]
[1761266712598,5.09764326,192.43,192.36,1.97]
[1761266712802,5.09764326,192.42,192.36,1.97]
[1761266713104,2.69,192.44,192.37,4.6771]
[1761266713296,5.09663094,192.43,192.37,4.6771]
[1761266713504,5.09663094,192.42,192.38,1.97]
[1761266713700,2.69,192.44,192.38,1.97]
[1761266713907,5.09648713,192.43,192.39,1.97]
[1761266714107,5.09648713,192.42,192.4,45.39]
[1761266714312,2.69,192.44,192.4,45.39]
[1761266714499,5.09547071,192.43,192.41,1.97]
[1761266714807,2.69,192.45,192.4,43.42]
[1761266715001,7.78531582,192.44,192.4,43.42]
[1761266715200,2.69,192.44,192.4,43.42]
[1761266717104,2.69,192.44,192.4,45.39]
[1761266718303,5.14835477,192.43,192.4,45.39]
[1761266718610,2.69,192.44,192.4,45.39]
[1761266718805,5.14843345,192.43,192.4,45.39]
[1761266719012,2.69,192.44,192.4,45.39]
[1761266719216,5.14843345,192.43,192.4,45.39]
[1761266719510,2.69,192.44,192.4,45.39]
[1761266719710,5.14770979,192.43,192.4,45.39]
[1761266719912,2.69,192.44,192.4,45.39]
[1761266720412,2.69,192.42,192.4,43.42]
[1761266723013,2.69,192.46,192.4,43.42]
[1761266723208,2.69,192.44,192.4,43.42]
[1761266723407,9.55367582,192.43,192.4,43.42]
[1761266723714,4.40749952,192.42,192.4,43.42]
[1761266723915,2.69,192.44,192.4,43.42]
[1761266724119,12.24297665,192.43,192.4,43.42]
[1761266724318,4.40725371,192.42,192.4,43.42]
[1761266724526,2.69,192.43,192.4,43.42]
[1761266724713,4.40690818,192.42,192.4,43.42]
[1761266725019,2.69,192.43,192.4,43.42]
[1761266725218,4.40682316,192.42,192.4,43.42]
[1761266725419,2.69,192.43,192.4,43.42]
[1761266725719,4.40661608,192.42,192.4,43.42]
[1761266725917,2.69,192.43,192.4,43.42]
[1761266726119,4.40661608,192.42,192.4,43.42]
[1761266726311,2.69,192.43,192.4,43.42]
[1761266726511,4.40635627,192.42,192.4,43.42]
[1761266726720,2.69,192.43,192.4,43.42]
[1761266726919,4.40635627,192.42,192.4,43.42]
[1761266727118,2.69,192.43,192.4,45.39]
[1761266727324,4.40632459,192.42,192.4,45.39]
[1761266727523,2.69,192.43,192.4,45.39]
[1761266727724,4.40609257,192.42,192.4,45.39]
[1761266727920,2.69,192.43,192.4,45.39]
[1761266729124,2.69,192.43,192.4,43.42]
[1761266729318,2.63,192.46,192.4,43.42]
[1761266729519,12.1785451,192.45,192.41,1.97]
[1761266729716,9.5485451,192.44,192.41,1.97]
[1761266729916,4.40526046,192.43,192.41,1.97]
[1761266730119,2.63,192.44,192.41,1.97]
[1761266730423,2.63,192.48,192.41,1.97]
[1761266730625,9.54703177,192.47,192.41,1.97]
[1761266730917,7.22190255,192.49,192.41,1.97]
[1761266730918,12.17703177,192.46,192.41,1.97]
[1761266731223,12.17703177,192.45,192.41,1.97]
[1761266731426,2.63,192.45,192.41,1.97]
[1761266733921,7.7700858,192.48,192.41,1.97]
[1761266734121,9.54282169,192.47,192.41,1.97]
[1761266734323,4.40273589,192.46,192.41,1.97]
[1761266734522,2.63,192.48,192.41,1.97]
[1761266734723,9.54089116,192.47,192.41,6.646]
[1761266735024,2.63,192.48,192.42,1.97]
[1761266735219,7.22190255,192.52,192.45,1.97]
[1761266735220,2.63,192.51,192.45,1.97]
[1761266735422,2.63,192.51,192.44,4.6753]
[1761266735423,2.63,192.54,192.47,1.97]
[1761266735618,2.63,192.52,192.49,1.97]
[1761266735816,4.4002628,192.51,192.49,43.4]
[1761266736023,2.63,192.49,192.43,4.6755]
[1761266736223,2.63,192.49,192.45,1.97]
[1761266736827,7.7646889,192.52,192.45,3.48931243]
[1761266737028,4.39876042,192.51,192.45,3.48931243]
[1761266737331,2.63,192.52,192.45,3.48931243]
[1761266737522,7.02737127,192.51,192.45,3.48931243]
[1761266737723,2.63,192.51,192.45,3.48931243]
[1761266741434,2.63,192.51,192.45,1.51931243]
[1761266744433,1.51931243,192.49,192.41,1.51931243]
[1761266744636,2.63,192.47,192.41,43.38]
[1761266745027,2.63,192.47,192.41,44.89931243]
[1761266745234,2.63,192.47,192.42,1.97]
[1761266745823,2.63,192.47,192.44,1.97]
[1761266746029,7.76247154,192.5,192.44,1.97]
[1761266746230,2.63,192.48,192.44,1.97]
[1761266750834,2.63,192.52,192.48,1.97]
[1761266751034,1.51931243,192.56,192.49,1.97]
[1761266751035,2.63,192.56,192.49,1.97]
[1761266751235,2.63,192.54,192.51,1.51931243]
[1761266752337,7.82466389,192.58,192.54,1.97]
[1761266752532,9.59591895,192.57,192.55,1.51931243]
[1761266752735,2.63,192.58,192.54,43.38]
[1761266752933,2.63,192.56,192.54,44.89931243]
[1761266753136,2.63,192.56,192.54,1.51931243]
[1761266754242,2.63,192.56,192.52,1.51931243]
[1761266754434,4.40107868,192.55,192.52,1.51931243]
[1761266754635,2.63,192.54,192.51,13.84]
[1761266754935,2.63,192.54,192.52,1.51931243]
[1761266756740,2.63,192.59,192.52,1.51931243]
[1761266756939,2.63,192.57,192.51,13.84]
[1761266757243,2.63,192.57,192.46,1.97]
[1761266757244,2.63,192.55,192.52,1.51931243]
[1761266757539,2.63,192.53,192.52,1.51931243]
[1761266759542,2.66,192.58,192.52,1.51931243]
[1761266759744,2.66,192.56,192.52,1.51931243]
[1761266759941,2.66,192.54,192.52,1.51931243]
[1761266760645,2.66,192.54,192.47,43.36]